{"text_format":"1","workbook":"xlsx","n_sheets":4,"sheets":["TENDER PACK 1 STORAGE (Sheet A)","DC1A","TENDER PACK 1 STORAGE (Sheet B)","DC1B"],"not_rendered":{"charts":0,"images":3,"macros":1,"external_links":0,"defined_names":0,"comments":2,"pivot_tables":0},"unopened":[],"bounds":{"document_bytes":16777216,"sheet_cells":100000,"rows_first":2000,"rows_last":500,"rows_between":2000,"halvings":0,"cell_chars":16384,"cell_head_chars":4096},"cells_cut":0,"cells_raw":0,"read":"whole","date_system":"1900"}

{"sheet":"TENDER PACK 1 STORAGE (Sheet A)","index":0,"n_rows":245,"n_cols":17,"rows_kept":245,"cut":false,"hidden":false,"merged":[[207,3,208,14],[210,3,210,14],[214,9,214,14],[214,3,214,8],[212,3,212,14],[213,3,213,14],[191,3,192,4],[191,11,192,12],[191,13,192,14],[193,3,194,4],[193,11,194,12],[193,13,194,14],[195,3,196,4],[195,11,196,12],[195,13,196,14],[197,3,198,4],[197,11,198,12],[197,13,198,14],[197,9,198,10],[191,5,192,6],[191,7,192,8],[191,9,192,10],[193,5,194,6],[193,7,194,8],[189,13,190,14],[189,3,190,4],[189,11,190,12],[197,5,198,6],[197,7,198,8],[193,9,194,10],[195,5,196,6],[195,7,196,8],[195,9,196,10],[189,5,190,6],[189,7,190,8],[189,9,190,10],[183,3,184,4],[183,11,184,12],[183,13,184,14],[185,3,186,4],[185,11,186,12],[185,13,186,14],[187,3,188,4],[187,11,188,12],[187,13,188,14],[183,5,184,6],[183,7,184,8],[183,9,184,10],[185,5,186,6],[185,7,186,8],[185,9,186,10],[187,5,188,6],[187,7,188,8],[187,9,188,10],[179,3,180,4],[179,11,180,12],[179,13,180,14],[181,3,182,4],[181,11,182,12],[181,13,182,14],[179,5,180,6],[179,7,180,8],[179,9,180,10],[181,5,182,6],[181,7,182,8],[181,9,182,10],[172,3,176,4],[172,11,176,12],[172,13,176,14],[177,3,178,4],[177,11,178,12],[177,13,178,14],[172,5,176,6],[172,7,176,8],[172,9,176,10],[177,5,178,6],[177,7,178,8],[177,9,178,10],[158,2,159,2],[158,3,159,6],[158,7,159,12],[158,13,159,14],[145,2,146,2],[139,2,142,2],[167,3,168,14],[170,3,170,14],[154,2,155,2],[154,3,155,6],[154,7,155,12],[154,13,155,14],[156,2,157,2],[156,3,157,6],[156,7,157,12],[156,13,157,14],[161,2,162,2],[161,7,163,12],[161,13,163,14],[161,3,163,6],[96,7,96,14],[97,3,98,6],[97,7,98,14],[99,3,99,6],[99,7,99,14],[135,2,136,2],[135,3,136,6],[135,7,136,12],[135,13,136,14],[132,2,133,2],[132,3,134,6],[132,7,134,12],[132,13,134,14],[113,2,114,2],[116,2,117,2],[121,3,123,6],[121,7,123,14],[121,2,123,2],[82,3,83,14],[85,3,85,14],[23,3,23,14],[23,16,24,17],[24,3,24,14],[26,3,38,14],[27,16,29,17],[42,3,42,14],[93,3,93,6],[93,7,93,14],[87,3,88,6],[87,7,88,14],[89,3,89,6],[89,7,89,14],[90,3,92,6],[90,7,92,14],[2,3,6,14],[3,16,5,17],[12,3,13,14],[15,3,21,14],[17,16,20,17],[43,3,47,14],[43,16,45,17],[49,3,61,14],[53,16,55,17],[8,3,10,9],[8,10,10,10],[8,11,10,14],[87,2,88,2],[90,2,92,2],[97,2,98,2],[101,2,102,2],[111,2,112,2],[119,2,120,2],[94,3,94,6],[94,7,94,14],[95,3,95,6],[95,7,95,14],[100,3,100,6],[100,7,100,14],[101,3,102,6],[101,7,102,14],[104,3,104,14],[106,3,107,14],[96,3,96,6],[119,3,120,6],[119,7,120,14],[109,3,109,14],[111,3,112,6],[111,7,112,14],[113,3,115,6],[113,7,115,14],[171,3,171,4],[171,11,171,12],[171,13,171,14],[127,3,128,14],[130,3,130,14],[116,3,118,6],[116,7,117,14],[152,13,153,14],[139,3,142,6],[139,7,142,12],[139,13,142,14],[143,3,144,6],[143,7,144,14],[171,5,171,6],[171,7,171,8],[171,9,171,10],[137,2,138,2],[137,3,138,6],[137,7,138,12],[137,13,138,14],[145,3,146,6],[145,7,146,14],[148,3,148,14],[150,3,150,14],[152,2,153,2],[152,3,153,6],[152,7,153,12],[143,2,144,2]]}
[]
[]
[null,null,null,"TENDER PACK 1\nOPERATING MARGINS\n2023/24 GAS CAPACITY TENDER (STORAGE)\nSHEET A - MANDATORY 12 MONTH BID"]
[]
[]
[]
[]
[]
[null,null,null,"This tender pack is designed for;\n• Gas Storage Facility Operators\n• Capacity Holders at Gas Storage Facilities",null,null,null,null,null,null,null,"Submission of this sheet is mandatory for Storage Tenderers"]
[]
[]
[]
[null,null,null,"Issued 9th December 2022"]
[]
[]
[null,null,null,"Produced by National Grid Gas Transmission\nNational Grid Gas plc\nNational Grid House\nWarwick Technology Park\nGallows Hill\nWarwick\nCV34 6DA"]
[]
[]
[]
[]
[]
[]
[]
[null,null,null,"Website:"]
[null,null,null,"https://www.nationalgrid.com/uk/gas-transmission/balancing/operating-margins-om"]
[]
[null,null,null,"PLEASE NOTE:\nThis document should be read in conjunction with the template Operating Margins agreements (found on the Operating Margins Homepage) and the document entitled \"Tender Guidance Document 2023/24\".\n\nSpecific guidance on how to complete these tender sheets is provided in Sections 7 & 8 of the Operating Margins Tender Guidance Document with specific cross-references to these tender sheets via superscript numbers adjacent to the relevant fields of information. Please also refer to Section 6 \"Requirements of the Tender Process\" in order to understand what must accompany the tender sheets as part of submission in order that assessment can proceed on any tenders received.\n\nTerms and phrases used in this document have the meanings set out or referred to in the template Operating Margins agreements and/or the Operating Margins Tender Guidance Document."]
[]
[]
[]
[]
[]
[]
[]
[]
[]
[]
[]
[]
[null,null,null,null,null,null,null,null,null,null,null,null,null,null,null,null,"Page 1"]
[]
[]
[null,null,null,"IMPORTANT INFORMATION - PLEASE READ:"]
[null,null,null,"• All parts of 'Sheet A' must be completed by all Storage tenderers and submitted to be eligible for assessment.\n• A Storage tenderer may submit an additional proposal for a 12 month OM service in the form of 'Sheet B', whereby tranches are split differently. This is optional.\n\n\n**Volumes in Sheets A and B will be treated as mutually exclusive - i.e. National Grid will only consider accepting tranche(s) from ONE of Sheet A or Sheet B.**"]
[]
[]
[]
[]
[]
[null,null,null,"Completed Tenders should be submitted by 13:00 hours (GMT) on Monday 23rd January 2023 via Ariba.\n\nThe completed Tender Pack should be uploaded with a filename which includes the company name and site.\nAfter uploading the Tender Pack document, terms and conditions must be accepted before submitting.\nSubmissions can be revised until the deadline."]
[]
[]
[]
[]
[]
[]
[]
[]
[]
[]
[]
[]
[]
[]
[]
[]
[]
[]
[]
[]
[]
[]
[]
[]
[]
[]
[]
[]
[]
[null,null,null,null,null,null,null,null,null,null,null,null,null,null,null,null,"Page 2"]
[]
[]
[null,null,null,"2023/24 OM GAS DELIVERY TENDER"]
[]
[]
[null,null,null,"Part 1: Tenderer Details"]
[]
[null,null,1,"Tenderer's Company Name\n(including company number)"]
[]
[null,null,2,"Company Representative, Job Title"]
[null,null,3,"Company Representative Address\n(full address including postcode)"]
[]
[]
[null,null,4,"Telephone Number"]
[null,null,5,"Facsimile Number"]
[null,null,6,"Email Address"]
[null,null,7,"Legal Agent Name"]
[null,null,8,"Legal Agent Address"]
[]
[null,null,9,"Shipper Short Code"]
[null,null,10,"Achilles Registration Number"]
[null,null,11,"Type of Credit Security Provided",null,null,null,null,null,null,null,null,null,null,null,null,2]
[]
[]
[null,null,null,"Part 2"]
[]
[null,null,null,"[See OM Tenderers Contract Response Form if such amendments are proposed]\nIf no amendments are proposed please go to Part 3"]
[]
[]
[null,null,null,"Part 3: Facility Details"]
[]
[null,null,12,"Facility Name\n(including company number if different)"]
[]
[null,null,13,"Facility Location\n(full address including postcode)"]
[]
[]
[null,null,14,"Service Provision Category",null,null,null,null,null,null,null,null,null,null,null,null,1]
[]
[]
[null,null,15,"Execution Date For Tenderer’s Agreement With Facility Operator"]
[]
[null,null,16,"Duration of Service",null,null,null,"12 Months (01/05/2023 - 30/04/2024)"]
[]
[]
[null,null,null,null,null,null,null,null,null,null,null,null,null,null,null,null,"Page 3"]
[]
[]
[null,null,null,"2023/24 OM GAS DELIVERY TENDER"]
[]
[]
[null,null,null,"Part 4: Deliverability & Availability"]
[]
[null,null,17,"Storage Withdrawal Capacity (Tendered) \n(minimum requirement is 500,000 kWh/hour)",null,null,null,null,null,null,null,null,null,"kWh/Day"]
[]
[]
[null,null,18,"Withdrawal Response Time",null,null,null,null,null,null,null,null,null,"Minutes"]
[]
[null,null,19,"Injection Response Time",null,null,null,null,null,null,null,null,null,"As defined by tenderer"]
[]
[null,null,20,"Planned Maintenance Periods",null,null,null,null,null,null,null,null,null,"Dates"]
[]
[]
[]
[null,null,21,"Website for Service Availability / Unavailability"]
[]
[null,null,22,"Allocation Agent                                                                  (Name, Address, Tel No)"]
[]
[]
[null,null,null,"Part 5: Charges & Capacity"]
[]
[null,null,null,"Where charges are to be levied for the provision / use of this service, these must be quantified below"]
[]
[null,null,23,"Injection Amount\n(optional)",null,null,null,null,null,null,null,null,null,"p/kWh"]
[]
[null,null,24,"Withdrawal Amount\n(optional)",null,null,null,null,null,null,null,null,null,"p/kWh"]
[]
[null,null,25,"Injection Overrun Amount \n(optional)",null,null,null,null,null,null,null,null,null,"p/kWh"]
[]
[null,null,26,"Withdrawal Overrun Amount\n(optional)",null,null,null,null,null,null,null,null,null,"p/kWh"]
[]
[]
[null,null,"26A","Additional SP Withdrawal Capacity Charge (only applicable where Service Provider is not the Facility Operator)",null,null,null,null,null,null,null,null,null,"p/kWh"]
[]
[]
[null,null,null,null,null,null,null,null,null,null,null,null,null,null,null,null,"Page 4"]
[]
[]
[null,null,null,"2023/24 OM GAS DELIVERY TENDER"]
[]
[]
[null,null,null,"Part 5: Charges & Capacity (Continued)"]
[null,null,null,27,null,28,null,29,null,30,null,31,null,32]
[null,null,null,"Capacity Procurement Tranche Number",null,"Storage Space (in kWh)",null,"Storage Injection Capacity (in kWh per day)",null,"Annual Service Fee (in pence per kWh per annum)",null,"Annual Service Fee (£)",null,"Tranche may only be accepted in full (YES / NO)"]
[]
[]
[]
[]
[null,null,null,1,null,null,null,null,null,null,null,{"$f":"(J178*F178)/100","v":0},null,null,null,null,false]
[]
[null,null,null,2,null,null,null,null,null,null,null,{"$f":"(J180*F180)/100","v":0},null,null,null,null,false]
[]
[null,null,null,3,null,null,null,null,null,null,null,{"$f":"(J182*F182)/100","v":0},null,null,null,null,false]
[]
[null,null,null,4,null,null,null,null,null,null,null,{"$f":"(J184*F184)/100","v":0},null,null,null,null,false]
[]
[null,null,null,5,null,null,null,null,null,null,null,{"$f":"(J186*F186)/100","v":0}]
[]
[null,null,null,6,null,null,null,null,null,null,null,{"$f":"(J188*F188)/100","v":0},null,null,null,null,false]
[]
[null,null,null,7,null,null,null,null,null,null,null,{"$f":"(J190*F190)/100","v":0},null,null,null,null,false]
[]
[null,null,null,8,null,null,null,null,null,null,null,{"$f":"(J192*F192)/100","v":0},null,null,null,null,false]
[]
[null,null,null,9,null,null,null,null,null,null,null,{"$f":"(J194*F194)/100","v":0},null,null,null,null,false]
[]
[null,null,null,10,null,null,null,null,null,null,null,{"$f":"(J196*F196)/100","v":0},null,null,null,null,false]
[]
[null,null,null,"Total",null,null,null,null,null,null,null,{"$f":"SUM(L178:M197)","v":0}]
[]
[]
[]
[]
[]
[]
[null,null,null,null,null,null,null,null,null,null,null,null,null,null,null,null,"Page 5"]
[]
[]
[null,null,null,"2023/24 OM GAS DELIVERY TENDER\n"]
[]
[]
[null,null,null,"Part 6: Facility Withdrawal Capacity (Nominal) (Tender Pack 1)"]
[]
[null,null,33,"Facility Withdrawal Capacity (Nominal)"]
[null,null,null,"Please use the below space to describe the deliverability at different stock levels"]
[null,null,null,"Stock Level (kWh)",null,null,null,null,null,"Total Physical Site deliverability kWh/d"]
[]
[]
[]
[]
[]
[]
[]
[]
[]
[]
[]
[]
[]
[]
[]
[]
[]
[]
[]
[]
[]
[]
[]
[]
[]
[]
[]
[]
[]
[null,null,null,null,null,null,null,null,null,null,null,null,null,null,null,null,"Page 6"]

{"sheet":"DC1A","index":1,"n_rows":13,"n_cols":36,"rows_kept":13,"cut":false,"hidden":true,"merged":[[0,2,1,9]]}
[null,null,"Data Collection Tab for Contracts Team"]
[]
["Tender Pack","Tender Ref","Tranche Ref","Main Ref","Tenderer's Company Name","Company Representative","Company Representative Address","Telephone Number","Facsimile Number","E-Mail Address","Legal Agent Name","Legal Agent Address","Shipper Short Code","Achilles Registration Number","Type of credit security provided","Winter only?","Facility Name","Facility Location","Service Provision Category","Execution Date for Tenderer's Agreement With Facility Operator","Storage Withdrawal Capacity, kWh/Day","Withdrawal Response Time, Minutes","Injection Response Time, Minutes","Planned Maintenenace Periods, Dates","Website for Clauses","Allocation Agent","Injection Charge (Optional), p/kWh","Withdrawal Charge (Optional), p/kWh","Injection Overrun Charge (Optional), p/kWh","Withdrawal Overrun Charge (Optional), p/kWh","Capacity Procurement Tranche Number","Storage Space, kWh","Storage Injection Capacity, kWh / day","Annual Service Fee, p/kWh pa","Please tick if the tranche may only be accepted in full","Has Facility Withdrawal Capacity been entered?"]
[null,null,null,{"$f":"A4&\".\"&B4&\".\"&C4","v":".."},{"$f":"'TENDER PACK 1 STORAGE (Sheet A)'!$H$88","v":0},{"$f":"'TENDER PACK 1 STORAGE (Sheet A)'!$H$90","v":0},{"$f":"'TENDER PACK 1 STORAGE (Sheet A)'!$H$91","v":0},{"$f":"'TENDER PACK 1 STORAGE (Sheet A)'!$H$94","v":0},{"$f":"'TENDER PACK 1 STORAGE (Sheet A)'!$H$95","v":0},{"$f":"'TENDER PACK 1 STORAGE (Sheet A)'!$H$96","v":0},{"$f":"'TENDER PACK 1 STORAGE (Sheet A)'!$H$97","v":0},{"$f":"'TENDER PACK 1 STORAGE (Sheet A)'!$H$98","v":0},{"$f":"'TENDER PACK 1 STORAGE (Sheet A)'!$H$100","v":0},{"$f":"'TENDER PACK 1 STORAGE (Sheet A)'!$H$101","v":0},{"$f":"IF('TENDER PACK 1 STORAGE (Sheet A)'!$Q$102=2,\"Parent Company Guarantee\",IF('TENDER PACK 1 STORAGE (Sheet A)'!$Q$102=3,\"Letter of Credit\",IF('TENDER PACK 1 STORAGE (Sheet A)'!$Q$102=1,\"Meets Requirements\",\"UNCHECKED\")))","v":"Parent Company Guarantee"},"No",{"$f":"'TENDER PACK 1 STORAGE (Sheet A)'!$H$112","v":0},{"$f":"'TENDER PACK 1 STORAGE (Sheet A)'!$H$114","v":0},{"$f":"IF('TENDER PACK 1 STORAGE (Sheet A)'!$Q$117=1,\"STORAGE OPERATOR\",IF('TENDER PACK 1 STORAGE (Sheet A)'!$Q$117=2,\"Primary Capacity Holder of Storage\",\"UNCHECKED\"))","v":"STORAGE OPERATOR"},{"$f":"'TENDER PACK 1 STORAGE (Sheet A)'!$H$120","v":0},{"$f":"'TENDER PACK 1 STORAGE (Sheet A)'!$H$133","v":0},{"$f":"'TENDER PACK 1 STORAGE (Sheet A)'!$H$136","v":0},{"$f":"'TENDER PACK 1 STORAGE (Sheet A)'!$H$138","v":0},{"$f":"'TENDER PACK 1 STORAGE (Sheet A)'!$H$140","v":"00:00:00"},{"$f":"'TENDER PACK 1 STORAGE (Sheet A)'!$H$144","v":0},{"$f":"'TENDER PACK 1 STORAGE (Sheet A)'!$H$146","v":0},{"$f":"'TENDER PACK 1 STORAGE (Sheet A)'!$H$153","v":0},{"$f":"'TENDER PACK 1 STORAGE (Sheet A)'!$H$155","v":0},{"$f":"'TENDER PACK 1 STORAGE (Sheet A)'!$H$157","v":0},{"$f":"'TENDER PACK 1 STORAGE (Sheet A)'!$H$159","v":0},{"$f":"'TENDER PACK 1 STORAGE (Sheet A)'!$D$178","v":1},{"$f":"'TENDER PACK 1 STORAGE (Sheet A)'!$F$178","v":0},{"$f":"'TENDER PACK 1 STORAGE (Sheet A)'!$H$178","v":0},{"$f":"'TENDER PACK 1 STORAGE (Sheet A)'!$J$178","v":0},{"$f":"'TENDER PACK 1 STORAGE (Sheet A)'!$N$178","v":0}]
[null,null,null,"..",{"$f":"'TENDER PACK 1 STORAGE (Sheet A)'!$H$88","v":0},{"$f":"'TENDER PACK 1 STORAGE (Sheet A)'!$H$90","v":0},{"$f":"'TENDER PACK 1 STORAGE (Sheet A)'!$H$91","v":0},{"$f":"'TENDER PACK 1 STORAGE (Sheet A)'!$H$94","v":0},{"$f":"'TENDER PACK 1 STORAGE (Sheet A)'!$H$95","v":0},{"$f":"'TENDER PACK 1 STORAGE (Sheet A)'!$H$96","v":0},{"$f":"'TENDER PACK 1 STORAGE (Sheet A)'!$H$97","v":0},{"$f":"'TENDER PACK 1 STORAGE (Sheet A)'!$H$98","v":0},{"$f":"'TENDER PACK 1 STORAGE (Sheet A)'!$H$100","v":0},{"$f":"'TENDER PACK 1 STORAGE (Sheet A)'!$H$101","v":0},{"$f":"IF('TENDER PACK 1 STORAGE (Sheet A)'!$Q$102=2,\"Parent Company Guarantee\",IF('TENDER PACK 1 STORAGE (Sheet A)'!$Q$102=3,\"Letter of Credit\",IF('TENDER PACK 1 STORAGE (Sheet A)'!$Q$102=1,\"Meets Requirements\",\"UNCHECKED\")))","v":"Parent Company Guarantee"},"No",{"$f":"'TENDER PACK 1 STORAGE (Sheet A)'!$H$112","v":0},{"$f":"'TENDER PACK 1 STORAGE (Sheet A)'!$H$114","v":0},{"$f":"IF('TENDER PACK 1 STORAGE (Sheet A)'!$Q$117=1,\"STORAGE OPERATOR\",IF('TENDER PACK 1 STORAGE (Sheet A)'!$Q$117=2,\"Primary Capacity Holder of Storage\",\"UNCHECKED\"))","v":"STORAGE OPERATOR"},{"$f":"'TENDER PACK 1 STORAGE (Sheet A)'!$H$120","v":0},{"$f":"'TENDER PACK 1 STORAGE (Sheet A)'!$H$133","v":0},{"$f":"'TENDER PACK 1 STORAGE (Sheet A)'!$H$136","v":0},{"$f":"'TENDER PACK 1 STORAGE (Sheet A)'!$H$138","v":0},{"$f":"'TENDER PACK 1 STORAGE (Sheet A)'!$H$140","v":"00:00:00"},{"$f":"'TENDER PACK 1 STORAGE (Sheet A)'!$H$144","v":0},{"$f":"'TENDER PACK 1 STORAGE (Sheet A)'!$H$146","v":0},{"$f":"'TENDER PACK 1 STORAGE (Sheet A)'!$H$153","v":0},{"$f":"'TENDER PACK 1 STORAGE (Sheet A)'!$H$155","v":0},{"$f":"'TENDER PACK 1 STORAGE (Sheet A)'!$H$157","v":0},{"$f":"'TENDER PACK 1 STORAGE (Sheet A)'!$H$159","v":0},{"$f":"'TENDER PACK 1 STORAGE (Sheet A)'!$D$180","v":2},{"$f":"'TENDER PACK 1 STORAGE (Sheet A)'!$F$180","v":0},{"$f":"'TENDER PACK 1 STORAGE (Sheet A)'!$H$180","v":0},{"$f":"'TENDER PACK 1 STORAGE (Sheet A)'!$J$180","v":0},{"$f":"'TENDER PACK 1 STORAGE (Sheet A)'!$N$180","v":0}]
[null,null,null,"..",{"$f":"'TENDER PACK 1 STORAGE (Sheet A)'!$H$88","v":0},{"$f":"'TENDER PACK 1 STORAGE (Sheet A)'!$H$90","v":0},{"$f":"'TENDER PACK 1 STORAGE (Sheet A)'!$H$91","v":0},{"$f":"'TENDER PACK 1 STORAGE (Sheet A)'!$H$94","v":0},{"$f":"'TENDER PACK 1 STORAGE (Sheet A)'!$H$95","v":0},{"$f":"'TENDER PACK 1 STORAGE (Sheet A)'!$H$96","v":0},{"$f":"'TENDER PACK 1 STORAGE (Sheet A)'!$H$97","v":0},{"$f":"'TENDER PACK 1 STORAGE (Sheet A)'!$H$98","v":0},{"$f":"'TENDER PACK 1 STORAGE (Sheet A)'!$H$100","v":0},{"$f":"'TENDER PACK 1 STORAGE (Sheet A)'!$H$101","v":0},{"$f":"IF('TENDER PACK 1 STORAGE (Sheet A)'!$Q$102=2,\"Parent Company Guarantee\",IF('TENDER PACK 1 STORAGE (Sheet A)'!$Q$102=3,\"Letter of Credit\",IF('TENDER PACK 1 STORAGE (Sheet A)'!$Q$102=1,\"Meets Requirements\",\"UNCHECKED\")))","v":"Parent Company Guarantee"},"No",{"$f":"'TENDER PACK 1 STORAGE (Sheet A)'!$H$112","v":0},{"$f":"'TENDER PACK 1 STORAGE (Sheet A)'!$H$114","v":0},{"$f":"IF('TENDER PACK 1 STORAGE (Sheet A)'!$Q$117=1,\"STORAGE OPERATOR\",IF('TENDER PACK 1 STORAGE (Sheet A)'!$Q$117=2,\"Primary Capacity Holder of Storage\",\"UNCHECKED\"))","v":"STORAGE OPERATOR"},{"$f":"'TENDER PACK 1 STORAGE (Sheet A)'!$H$120","v":0},{"$f":"'TENDER PACK 1 STORAGE (Sheet A)'!$H$133","v":0},{"$f":"'TENDER PACK 1 STORAGE (Sheet A)'!$H$136","v":0},{"$f":"'TENDER PACK 1 STORAGE (Sheet A)'!$H$138","v":0},{"$f":"'TENDER PACK 1 STORAGE (Sheet A)'!$H$140","v":"00:00:00"},{"$f":"'TENDER PACK 1 STORAGE (Sheet A)'!$H$144","v":0},{"$f":"'TENDER PACK 1 STORAGE (Sheet A)'!$H$146","v":0},{"$f":"'TENDER PACK 1 STORAGE (Sheet A)'!$H$153","v":0},{"$f":"'TENDER PACK 1 STORAGE (Sheet A)'!$H$155","v":0},{"$f":"'TENDER PACK 1 STORAGE (Sheet A)'!$H$157","v":0},{"$f":"'TENDER PACK 1 STORAGE (Sheet A)'!$H$159","v":0},{"$f":"'TENDER PACK 1 STORAGE (Sheet A)'!$D$182","v":3},{"$f":"'TENDER PACK 1 STORAGE (Sheet A)'!$F$182","v":0},{"$f":"'TENDER PACK 1 STORAGE (Sheet A)'!$H$182","v":0},{"$f":"'TENDER PACK 1 STORAGE (Sheet A)'!$J$182","v":0},{"$f":"'TENDER PACK 1 STORAGE (Sheet A)'!$N$182","v":0}]
[null,null,null,"..",{"$f":"'TENDER PACK 1 STORAGE (Sheet A)'!$H$88","v":0},{"$f":"'TENDER PACK 1 STORAGE (Sheet A)'!$H$90","v":0},{"$f":"'TENDER PACK 1 STORAGE (Sheet A)'!$H$91","v":0},{"$f":"'TENDER PACK 1 STORAGE (Sheet A)'!$H$94","v":0},{"$f":"'TENDER PACK 1 STORAGE (Sheet A)'!$H$95","v":0},{"$f":"'TENDER PACK 1 STORAGE (Sheet A)'!$H$96","v":0},{"$f":"'TENDER PACK 1 STORAGE (Sheet A)'!$H$97","v":0},{"$f":"'TENDER PACK 1 STORAGE (Sheet A)'!$H$98","v":0},{"$f":"'TENDER PACK 1 STORAGE (Sheet A)'!$H$100","v":0},{"$f":"'TENDER PACK 1 STORAGE (Sheet A)'!$H$101","v":0},{"$f":"IF('TENDER PACK 1 STORAGE (Sheet A)'!$Q$102=2,\"Parent Company Guarantee\",IF('TENDER PACK 1 STORAGE (Sheet A)'!$Q$102=3,\"Letter of Credit\",IF('TENDER PACK 1 STORAGE (Sheet A)'!$Q$102=1,\"Meets Requirements\",\"UNCHECKED\")))","v":"Parent Company Guarantee"},"No",{"$f":"'TENDER PACK 1 STORAGE (Sheet A)'!$H$112","v":0},{"$f":"'TENDER PACK 1 STORAGE (Sheet A)'!$H$114","v":0},{"$f":"IF('TENDER PACK 1 STORAGE (Sheet A)'!$Q$117=1,\"STORAGE OPERATOR\",IF('TENDER PACK 1 STORAGE (Sheet A)'!$Q$117=2,\"Primary Capacity Holder of Storage\",\"UNCHECKED\"))","v":"STORAGE OPERATOR"},{"$f":"'TENDER PACK 1 STORAGE (Sheet A)'!$H$120","v":0},{"$f":"'TENDER PACK 1 STORAGE (Sheet A)'!$H$133","v":0},{"$f":"'TENDER PACK 1 STORAGE (Sheet A)'!$H$136","v":0},{"$f":"'TENDER PACK 1 STORAGE (Sheet A)'!$H$138","v":0},{"$f":"'TENDER PACK 1 STORAGE (Sheet A)'!$H$140","v":"00:00:00"},{"$f":"'TENDER PACK 1 STORAGE (Sheet A)'!$H$144","v":0},{"$f":"'TENDER PACK 1 STORAGE (Sheet A)'!$H$146","v":0},{"$f":"'TENDER PACK 1 STORAGE (Sheet A)'!$H$153","v":0},{"$f":"'TENDER PACK 1 STORAGE (Sheet A)'!$H$155","v":0},{"$f":"'TENDER PACK 1 STORAGE (Sheet A)'!$H$157","v":0},{"$f":"'TENDER PACK 1 STORAGE (Sheet A)'!$H$159","v":0},{"$f":"'TENDER PACK 1 STORAGE (Sheet A)'!$D$184","v":4},{"$f":"'TENDER PACK 1 STORAGE (Sheet A)'!$F$184","v":0},{"$f":"'TENDER PACK 1 STORAGE (Sheet A)'!$H$184","v":0},{"$f":"'TENDER PACK 1 STORAGE (Sheet A)'!$J$184","v":0},{"$f":"'TENDER PACK 1 STORAGE (Sheet A)'!$N$184","v":0}]
[null,null,null,"..",{"$f":"'TENDER PACK 1 STORAGE (Sheet A)'!$H$88","v":0},{"$f":"'TENDER PACK 1 STORAGE (Sheet A)'!$H$90","v":0},{"$f":"'TENDER PACK 1 STORAGE (Sheet A)'!$H$91","v":0},{"$f":"'TENDER PACK 1 STORAGE (Sheet A)'!$H$94","v":0},{"$f":"'TENDER PACK 1 STORAGE (Sheet A)'!$H$95","v":0},{"$f":"'TENDER PACK 1 STORAGE (Sheet A)'!$H$96","v":0},{"$f":"'TENDER PACK 1 STORAGE (Sheet A)'!$H$97","v":0},{"$f":"'TENDER PACK 1 STORAGE (Sheet A)'!$H$98","v":0},{"$f":"'TENDER PACK 1 STORAGE (Sheet A)'!$H$100","v":0},{"$f":"'TENDER PACK 1 STORAGE (Sheet A)'!$H$101","v":0},{"$f":"IF('TENDER PACK 1 STORAGE (Sheet A)'!$Q$102=2,\"Parent Company Guarantee\",IF('TENDER PACK 1 STORAGE (Sheet A)'!$Q$102=3,\"Letter of Credit\",IF('TENDER PACK 1 STORAGE (Sheet A)'!$Q$102=1,\"Meets Requirements\",\"UNCHECKED\")))","v":"Parent Company Guarantee"},"No",{"$f":"'TENDER PACK 1 STORAGE (Sheet A)'!$H$112","v":0},{"$f":"'TENDER PACK 1 STORAGE (Sheet A)'!$H$114","v":0},{"$f":"IF('TENDER PACK 1 STORAGE (Sheet A)'!$Q$117=1,\"STORAGE OPERATOR\",IF('TENDER PACK 1 STORAGE (Sheet A)'!$Q$117=2,\"Primary Capacity Holder of Storage\",\"UNCHECKED\"))","v":"STORAGE OPERATOR"},{"$f":"'TENDER PACK 1 STORAGE (Sheet A)'!$H$120","v":0},{"$f":"'TENDER PACK 1 STORAGE (Sheet A)'!$H$133","v":0},{"$f":"'TENDER PACK 1 STORAGE (Sheet A)'!$H$136","v":0},{"$f":"'TENDER PACK 1 STORAGE (Sheet A)'!$H$138","v":0},{"$f":"'TENDER PACK 1 STORAGE (Sheet A)'!$H$140","v":"00:00:00"},{"$f":"'TENDER PACK 1 STORAGE (Sheet A)'!$H$144","v":0},{"$f":"'TENDER PACK 1 STORAGE (Sheet A)'!$H$146","v":0},{"$f":"'TENDER PACK 1 STORAGE (Sheet A)'!$H$153","v":0},{"$f":"'TENDER PACK 1 STORAGE (Sheet A)'!$H$155","v":0},{"$f":"'TENDER PACK 1 STORAGE (Sheet A)'!$H$157","v":0},{"$f":"'TENDER PACK 1 STORAGE (Sheet A)'!$H$159","v":0},{"$f":"'TENDER PACK 1 STORAGE (Sheet A)'!$D$186","v":5},{"$f":"'TENDER PACK 1 STORAGE (Sheet A)'!$F$186","v":0},{"$f":"'TENDER PACK 1 STORAGE (Sheet A)'!$H$186","v":0},{"$f":"'TENDER PACK 1 STORAGE (Sheet A)'!$J$186","v":0},{"$f":"'TENDER PACK 1 STORAGE (Sheet A)'!$N$186","v":0}]
[null,null,null,"..",{"$f":"'TENDER PACK 1 STORAGE (Sheet A)'!$H$88","v":0},{"$f":"'TENDER PACK 1 STORAGE (Sheet A)'!$H$90","v":0},{"$f":"'TENDER PACK 1 STORAGE (Sheet A)'!$H$91","v":0},{"$f":"'TENDER PACK 1 STORAGE (Sheet A)'!$H$94","v":0},{"$f":"'TENDER PACK 1 STORAGE (Sheet A)'!$H$95","v":0},{"$f":"'TENDER PACK 1 STORAGE (Sheet A)'!$H$96","v":0},{"$f":"'TENDER PACK 1 STORAGE (Sheet A)'!$H$97","v":0},{"$f":"'TENDER PACK 1 STORAGE (Sheet A)'!$H$98","v":0},{"$f":"'TENDER PACK 1 STORAGE (Sheet A)'!$H$100","v":0},{"$f":"'TENDER PACK 1 STORAGE (Sheet A)'!$H$101","v":0},{"$f":"IF('TENDER PACK 1 STORAGE (Sheet A)'!$Q$102=2,\"Parent Company Guarantee\",IF('TENDER PACK 1 STORAGE (Sheet A)'!$Q$102=3,\"Letter of Credit\",IF('TENDER PACK 1 STORAGE (Sheet A)'!$Q$102=1,\"Meets Requirements\",\"UNCHECKED\")))","v":"Parent Company Guarantee"},"No",{"$f":"'TENDER PACK 1 STORAGE (Sheet A)'!$H$112","v":0},{"$f":"'TENDER PACK 1 STORAGE (Sheet A)'!$H$114","v":0},{"$f":"IF('TENDER PACK 1 STORAGE (Sheet A)'!$Q$117=1,\"STORAGE OPERATOR\",IF('TENDER PACK 1 STORAGE (Sheet A)'!$Q$117=2,\"Primary Capacity Holder of Storage\",\"UNCHECKED\"))","v":"STORAGE OPERATOR"},{"$f":"'TENDER PACK 1 STORAGE (Sheet A)'!$H$120","v":0},{"$f":"'TENDER PACK 1 STORAGE (Sheet A)'!$H$133","v":0},{"$f":"'TENDER PACK 1 STORAGE (Sheet A)'!$H$136","v":0},{"$f":"'TENDER PACK 1 STORAGE (Sheet A)'!$H$138","v":0},{"$f":"'TENDER PACK 1 STORAGE (Sheet A)'!$H$140","v":"00:00:00"},{"$f":"'TENDER PACK 1 STORAGE (Sheet A)'!$H$144","v":0},{"$f":"'TENDER PACK 1 STORAGE (Sheet A)'!$H$146","v":0},{"$f":"'TENDER PACK 1 STORAGE (Sheet A)'!$H$153","v":0},{"$f":"'TENDER PACK 1 STORAGE (Sheet A)'!$H$155","v":0},{"$f":"'TENDER PACK 1 STORAGE (Sheet A)'!$H$157","v":0},{"$f":"'TENDER PACK 1 STORAGE (Sheet A)'!$H$159","v":0},{"$f":"'TENDER PACK 1 STORAGE (Sheet A)'!$D$188","v":6},{"$f":"'TENDER PACK 1 STORAGE (Sheet A)'!$F$188","v":0},{"$f":"'TENDER PACK 1 STORAGE (Sheet A)'!$H$188","v":0},{"$f":"'TENDER PACK 1 STORAGE (Sheet A)'!$J$188","v":0},{"$f":"'TENDER PACK 1 STORAGE (Sheet A)'!$N$188","v":0}]
[null,null,null,"..",{"$f":"'TENDER PACK 1 STORAGE (Sheet A)'!$H$88","v":0},{"$f":"'TENDER PACK 1 STORAGE (Sheet A)'!$H$90","v":0},{"$f":"'TENDER PACK 1 STORAGE (Sheet A)'!$H$91","v":0},{"$f":"'TENDER PACK 1 STORAGE (Sheet A)'!$H$94","v":0},{"$f":"'TENDER PACK 1 STORAGE (Sheet A)'!$H$95","v":0},{"$f":"'TENDER PACK 1 STORAGE (Sheet A)'!$H$96","v":0},{"$f":"'TENDER PACK 1 STORAGE (Sheet A)'!$H$97","v":0},{"$f":"'TENDER PACK 1 STORAGE (Sheet A)'!$H$98","v":0},{"$f":"'TENDER PACK 1 STORAGE (Sheet A)'!$H$100","v":0},{"$f":"'TENDER PACK 1 STORAGE (Sheet A)'!$H$101","v":0},{"$f":"IF('TENDER PACK 1 STORAGE (Sheet A)'!$Q$102=2,\"Parent Company Guarantee\",IF('TENDER PACK 1 STORAGE (Sheet A)'!$Q$102=3,\"Letter of Credit\",IF('TENDER PACK 1 STORAGE (Sheet A)'!$Q$102=1,\"Meets Requirements\",\"UNCHECKED\")))","v":"Parent Company Guarantee"},"No",{"$f":"'TENDER PACK 1 STORAGE (Sheet A)'!$H$112","v":0},{"$f":"'TENDER PACK 1 STORAGE (Sheet A)'!$H$114","v":0},{"$f":"IF('TENDER PACK 1 STORAGE (Sheet A)'!$Q$117=1,\"STORAGE OPERATOR\",IF('TENDER PACK 1 STORAGE (Sheet A)'!$Q$117=2,\"Primary Capacity Holder of Storage\",\"UNCHECKED\"))","v":"STORAGE OPERATOR"},{"$f":"'TENDER PACK 1 STORAGE (Sheet A)'!$H$120","v":0},{"$f":"'TENDER PACK 1 STORAGE (Sheet A)'!$H$133","v":0},{"$f":"'TENDER PACK 1 STORAGE (Sheet A)'!$H$136","v":0},{"$f":"'TENDER PACK 1 STORAGE (Sheet A)'!$H$138","v":0},{"$f":"'TENDER PACK 1 STORAGE (Sheet A)'!$H$140","v":"00:00:00"},{"$f":"'TENDER PACK 1 STORAGE (Sheet A)'!$H$144","v":0},{"$f":"'TENDER PACK 1 STORAGE (Sheet A)'!$H$146","v":0},{"$f":"'TENDER PACK 1 STORAGE (Sheet A)'!$H$153","v":0},{"$f":"'TENDER PACK 1 STORAGE (Sheet A)'!$H$155","v":0},{"$f":"'TENDER PACK 1 STORAGE (Sheet A)'!$H$157","v":0},{"$f":"'TENDER PACK 1 STORAGE (Sheet A)'!$H$159","v":0},{"$f":"'TENDER PACK 1 STORAGE (Sheet A)'!$D$190","v":7},{"$f":"'TENDER PACK 1 STORAGE (Sheet A)'!$F$190","v":0},{"$f":"'TENDER PACK 1 STORAGE (Sheet A)'!$H$190","v":0},{"$f":"'TENDER PACK 1 STORAGE (Sheet A)'!$J$190","v":0},{"$f":"'TENDER PACK 1 STORAGE (Sheet A)'!$N$190","v":0}]
[null,null,null,"..",{"$f":"'TENDER PACK 1 STORAGE (Sheet A)'!$H$88","v":0},{"$f":"'TENDER PACK 1 STORAGE (Sheet A)'!$H$90","v":0},{"$f":"'TENDER PACK 1 STORAGE (Sheet A)'!$H$91","v":0},{"$f":"'TENDER PACK 1 STORAGE (Sheet A)'!$H$94","v":0},{"$f":"'TENDER PACK 1 STORAGE (Sheet A)'!$H$95","v":0},{"$f":"'TENDER PACK 1 STORAGE (Sheet A)'!$H$96","v":0},{"$f":"'TENDER PACK 1 STORAGE (Sheet A)'!$H$97","v":0},{"$f":"'TENDER PACK 1 STORAGE (Sheet A)'!$H$98","v":0},{"$f":"'TENDER PACK 1 STORAGE (Sheet A)'!$H$100","v":0},{"$f":"'TENDER PACK 1 STORAGE (Sheet A)'!$H$101","v":0},{"$f":"IF('TENDER PACK 1 STORAGE (Sheet A)'!$Q$102=2,\"Parent Company Guarantee\",IF('TENDER PACK 1 STORAGE (Sheet A)'!$Q$102=3,\"Letter of Credit\",IF('TENDER PACK 1 STORAGE (Sheet A)'!$Q$102=1,\"Meets Requirements\",\"UNCHECKED\")))","v":"Parent Company Guarantee"},"No",{"$f":"'TENDER PACK 1 STORAGE (Sheet A)'!$H$112","v":0},{"$f":"'TENDER PACK 1 STORAGE (Sheet A)'!$H$114","v":0},{"$f":"IF('TENDER PACK 1 STORAGE (Sheet A)'!$Q$117=1,\"STORAGE OPERATOR\",IF('TENDER PACK 1 STORAGE (Sheet A)'!$Q$117=2,\"Primary Capacity Holder of Storage\",\"UNCHECKED\"))","v":"STORAGE OPERATOR"},{"$f":"'TENDER PACK 1 STORAGE (Sheet A)'!$H$120","v":0},{"$f":"'TENDER PACK 1 STORAGE (Sheet A)'!$H$133","v":0},{"$f":"'TENDER PACK 1 STORAGE (Sheet A)'!$H$136","v":0},{"$f":"'TENDER PACK 1 STORAGE (Sheet A)'!$H$138","v":0},{"$f":"'TENDER PACK 1 STORAGE (Sheet A)'!$H$140","v":"00:00:00"},{"$f":"'TENDER PACK 1 STORAGE (Sheet A)'!$H$144","v":0},{"$f":"'TENDER PACK 1 STORAGE (Sheet A)'!$H$146","v":0},{"$f":"'TENDER PACK 1 STORAGE (Sheet A)'!$H$153","v":0},{"$f":"'TENDER PACK 1 STORAGE (Sheet A)'!$H$155","v":0},{"$f":"'TENDER PACK 1 STORAGE (Sheet A)'!$H$157","v":0},{"$f":"'TENDER PACK 1 STORAGE (Sheet A)'!$H$159","v":0},{"$f":"'TENDER PACK 1 STORAGE (Sheet A)'!$D$192","v":8},{"$f":"'TENDER PACK 1 STORAGE (Sheet A)'!$F$192","v":0},{"$f":"'TENDER PACK 1 STORAGE (Sheet A)'!$H$192","v":0},{"$f":"'TENDER PACK 1 STORAGE (Sheet A)'!$J$192","v":0},{"$f":"'TENDER PACK 1 STORAGE (Sheet A)'!$N$192","v":0}]
[null,null,null,"..",{"$f":"'TENDER PACK 1 STORAGE (Sheet A)'!$H$88","v":0},{"$f":"'TENDER PACK 1 STORAGE (Sheet A)'!$H$90","v":0},{"$f":"'TENDER PACK 1 STORAGE (Sheet A)'!$H$91","v":0},{"$f":"'TENDER PACK 1 STORAGE (Sheet A)'!$H$94","v":0},{"$f":"'TENDER PACK 1 STORAGE (Sheet A)'!$H$95","v":0},{"$f":"'TENDER PACK 1 STORAGE (Sheet A)'!$H$96","v":0},{"$f":"'TENDER PACK 1 STORAGE (Sheet A)'!$H$97","v":0},{"$f":"'TENDER PACK 1 STORAGE (Sheet A)'!$H$98","v":0},{"$f":"'TENDER PACK 1 STORAGE (Sheet A)'!$H$100","v":0},{"$f":"'TENDER PACK 1 STORAGE (Sheet A)'!$H$101","v":0},{"$f":"IF('TENDER PACK 1 STORAGE (Sheet A)'!$Q$102=2,\"Parent Company Guarantee\",IF('TENDER PACK 1 STORAGE (Sheet A)'!$Q$102=3,\"Letter of Credit\",IF('TENDER PACK 1 STORAGE (Sheet A)'!$Q$102=1,\"Meets Requirements\",\"UNCHECKED\")))","v":"Parent Company Guarantee"},"No",{"$f":"'TENDER PACK 1 STORAGE (Sheet A)'!$H$112","v":0},{"$f":"'TENDER PACK 1 STORAGE (Sheet A)'!$H$114","v":0},{"$f":"IF('TENDER PACK 1 STORAGE (Sheet A)'!$Q$117=1,\"STORAGE OPERATOR\",IF('TENDER PACK 1 STORAGE (Sheet A)'!$Q$117=2,\"Primary Capacity Holder of Storage\",\"UNCHECKED\"))","v":"STORAGE OPERATOR"},{"$f":"'TENDER PACK 1 STORAGE (Sheet A)'!$H$120","v":0},{"$f":"'TENDER PACK 1 STORAGE (Sheet A)'!$H$133","v":0},{"$f":"'TENDER PACK 1 STORAGE (Sheet A)'!$H$136","v":0},{"$f":"'TENDER PACK 1 STORAGE (Sheet A)'!$H$138","v":0},{"$f":"'TENDER PACK 1 STORAGE (Sheet A)'!$H$140","v":"00:00:00"},{"$f":"'TENDER PACK 1 STORAGE (Sheet A)'!$H$144","v":0},{"$f":"'TENDER PACK 1 STORAGE (Sheet A)'!$H$146","v":0},{"$f":"'TENDER PACK 1 STORAGE (Sheet A)'!$H$153","v":0},{"$f":"'TENDER PACK 1 STORAGE (Sheet A)'!$H$155","v":0},{"$f":"'TENDER PACK 1 STORAGE (Sheet A)'!$H$157","v":0},{"$f":"'TENDER PACK 1 STORAGE (Sheet A)'!$H$159","v":0},{"$f":"'TENDER PACK 1 STORAGE (Sheet A)'!$D$194","v":9},{"$f":"'TENDER PACK 1 STORAGE (Sheet A)'!$F$194","v":0},{"$f":"'TENDER PACK 1 STORAGE (Sheet A)'!$H$194","v":0},{"$f":"'TENDER PACK 1 STORAGE (Sheet A)'!$J$194","v":0},{"$f":"'TENDER PACK 1 STORAGE (Sheet A)'!$N$194","v":0}]
[null,null,null,"..",{"$f":"'TENDER PACK 1 STORAGE (Sheet A)'!$H$88","v":0},{"$f":"'TENDER PACK 1 STORAGE (Sheet A)'!$H$90","v":0},{"$f":"'TENDER PACK 1 STORAGE (Sheet A)'!$H$91","v":0},{"$f":"'TENDER PACK 1 STORAGE (Sheet A)'!$H$94","v":0},{"$f":"'TENDER PACK 1 STORAGE (Sheet A)'!$H$95","v":0},{"$f":"'TENDER PACK 1 STORAGE (Sheet A)'!$H$96","v":0},{"$f":"'TENDER PACK 1 STORAGE (Sheet A)'!$H$97","v":0},{"$f":"'TENDER PACK 1 STORAGE (Sheet A)'!$H$98","v":0},{"$f":"'TENDER PACK 1 STORAGE (Sheet A)'!$H$100","v":0},{"$f":"'TENDER PACK 1 STORAGE (Sheet A)'!$H$101","v":0},{"$f":"IF('TENDER PACK 1 STORAGE (Sheet A)'!$Q$102=2,\"Parent Company Guarantee\",IF('TENDER PACK 1 STORAGE (Sheet A)'!$Q$102=3,\"Letter of Credit\",IF('TENDER PACK 1 STORAGE (Sheet A)'!$Q$102=1,\"Meets Requirements\",\"UNCHECKED\")))","v":"Parent Company Guarantee"},"No",{"$f":"'TENDER PACK 1 STORAGE (Sheet A)'!$H$112","v":0},{"$f":"'TENDER PACK 1 STORAGE (Sheet A)'!$H$114","v":0},{"$f":"IF('TENDER PACK 1 STORAGE (Sheet A)'!$Q$117=1,\"STORAGE OPERATOR\",IF('TENDER PACK 1 STORAGE (Sheet A)'!$Q$117=2,\"Primary Capacity Holder of Storage\",\"UNCHECKED\"))","v":"STORAGE OPERATOR"},{"$f":"'TENDER PACK 1 STORAGE (Sheet A)'!$H$120","v":0},{"$f":"'TENDER PACK 1 STORAGE (Sheet A)'!$H$133","v":0},{"$f":"'TENDER PACK 1 STORAGE (Sheet A)'!$H$136","v":0},{"$f":"'TENDER PACK 1 STORAGE (Sheet A)'!$H$138","v":0},{"$f":"'TENDER PACK 1 STORAGE (Sheet A)'!$H$140","v":"00:00:00"},{"$f":"'TENDER PACK 1 STORAGE (Sheet A)'!$H$144","v":0},{"$f":"'TENDER PACK 1 STORAGE (Sheet A)'!$H$146","v":0},{"$f":"'TENDER PACK 1 STORAGE (Sheet A)'!$H$153","v":0},{"$f":"'TENDER PACK 1 STORAGE (Sheet A)'!$H$155","v":0},{"$f":"'TENDER PACK 1 STORAGE (Sheet A)'!$H$157","v":0},{"$f":"'TENDER PACK 1 STORAGE (Sheet A)'!$H$159","v":0},{"$f":"'TENDER PACK 1 STORAGE (Sheet A)'!$D$196","v":10},{"$f":"'TENDER PACK 1 STORAGE (Sheet A)'!$F$196","v":0},{"$f":"'TENDER PACK 1 STORAGE (Sheet A)'!$H$196","v":0},{"$f":"'TENDER PACK 1 STORAGE (Sheet A)'!$J$196","v":0},{"$f":"'TENDER PACK 1 STORAGE (Sheet A)'!$N$196","v":0}]

{"sheet":"TENDER PACK 1 STORAGE (Sheet B)","index":2,"n_rows":245,"n_cols":17,"rows_kept":245,"cut":false,"hidden":false,"merged":[[2,3,6,14],[3,16,5,17],[8,3,10,9],[8,10,10,10],[8,11,10,14],[12,3,13,14],[42,3,42,14],[43,3,47,14],[43,16,45,17],[49,3,61,14],[53,16,55,17],[82,3,83,14],[15,3,21,14],[17,16,20,17],[23,3,23,14],[23,16,24,17],[24,3,24,14],[26,3,38,14],[27,16,29,17],[90,2,92,2],[90,3,92,6],[90,7,92,14],[93,3,93,6],[93,7,93,14],[94,3,94,6],[94,7,94,14],[85,3,85,14],[87,2,88,2],[87,3,88,6],[87,7,88,14],[89,3,89,6],[89,7,89,14],[99,3,99,6],[99,7,99,14],[100,3,100,6],[100,7,100,14],[101,2,102,2],[101,3,102,6],[101,7,102,14],[95,3,95,6],[95,7,95,14],[96,3,96,6],[96,7,96,14],[97,2,98,2],[97,3,98,6],[97,7,98,14],[113,2,114,2],[113,3,115,6],[113,7,115,14],[116,2,117,2],[116,3,118,6],[116,7,117,14],[104,3,104,14],[106,3,107,14],[109,3,109,14],[111,2,112,2],[111,3,112,6],[111,7,112,14],[119,2,120,2],[119,3,120,6],[119,7,120,14],[127,3,128,14],[130,3,130,14],[132,2,133,2],[132,3,134,6],[132,7,134,12],[132,13,134,14],[121,3,123,6],[121,7,123,14],[121,2,123,2],[139,2,142,2],[139,3,142,6],[139,7,142,12],[139,13,142,14],[143,2,144,2],[143,3,144,6],[143,7,144,14],[135,2,136,2],[135,3,136,6],[135,7,136,12],[135,13,136,14],[137,2,138,2],[137,3,138,6],[137,7,138,12],[137,13,138,14],[145,2,146,2],[145,3,146,6],[145,7,146,14],[148,3,148,14],[150,3,150,14],[152,2,153,2],[152,3,153,6],[152,7,153,12],[152,13,153,14],[158,2,159,2],[158,3,159,6],[158,7,159,12],[158,13,159,14],[167,3,168,14],[170,3,170,14],[154,2,155,2],[154,3,155,6],[154,7,155,12],[154,13,155,14],[156,2,157,2],[156,3,157,6],[156,7,157,12],[156,13,157,14],[161,2,162,2],[161,3,163,6],[161,7,163,12],[161,13,163,14],[171,3,171,4],[171,11,171,12],[171,13,171,14],[172,3,176,4],[172,11,176,12],[172,13,176,14],[172,5,176,6],[172,7,176,8],[172,9,176,10],[171,5,171,6],[171,7,171,8],[171,9,171,10],[177,3,178,4],[177,11,178,12],[177,13,178,14],[179,3,180,4],[179,11,180,12],[179,13,180,14],[177,5,178,6],[179,5,180,6],[177,7,178,8],[179,7,180,8],[177,9,178,10],[179,9,180,10],[181,3,182,4],[181,11,182,12],[181,13,182,14],[183,3,184,4],[183,11,184,12],[183,13,184,14],[181,5,182,6],[183,5,184,6],[181,7,182,8],[183,7,184,8],[181,9,182,10],[183,9,184,10],[185,3,186,4],[185,11,186,12],[185,13,186,14],[187,3,188,4],[187,11,188,12],[187,13,188,14],[185,5,186,6],[187,5,188,6],[185,7,186,8],[187,7,188,8],[185,9,186,10],[187,9,188,10],[189,3,190,4],[189,11,190,12],[189,13,190,14],[191,3,192,4],[191,11,192,12],[191,13,192,14],[189,5,190,6],[191,5,192,6],[189,7,190,8],[191,7,192,8],[189,9,190,10],[191,9,192,10],[193,3,194,4],[193,11,194,12],[193,13,194,14],[195,3,196,4],[195,11,196,12],[195,13,196,14],[193,5,194,6],[195,5,196,6],[193,7,194,8],[195,7,196,8],[193,9,194,10],[195,9,196,10],[210,3,210,14],[212,3,212,14],[213,3,213,14],[214,3,214,8],[214,9,214,14],[197,3,198,4],[197,11,198,12],[197,13,198,14],[207,3,208,14],[197,5,198,6],[197,7,198,8],[197,9,198,10]]}
[]
[]
[null,null,null,"TENDER PACK 1\nOPERATING MARGINS\n2023/24 GAS CAPACITY TENDER (STORAGE)\nSHEET B - OPTIONAL 12 MONTH BID"]
[]
[]
[]
[]
[]
[null,null,null,"This tender pack is designed for;\n• Gas Storage Facility Operators\n• Capacity Holders at Gas Storage Facilities",null,null,null,null,null,null,null,"Submission of this sheet is optional for Storage Tenderers"]
[]
[]
[]
[null,null,null,"Issued 9th December 2022"]
[]
[]
[null,null,null,"Produced by National Grid Gas Transmission\nNational Grid Gas plc\nNational Grid House\nWarwick Technology Park\nGallows Hill\nWarwick\nCV34 6DA"]
[]
[]
[]
[]
[]
[]
[]
[null,null,null,"Website:"]
[null,null,null,"https://www.nationalgrid.com/uk/gas-transmission/balancing/operating-margins-om"]
[]
[null,null,null,"PLEASE NOTE:\nThis document should be read in conjunction with the template Operating Margins agreements (found on the Operating Margins Homepage) and the document entitled \"Tender Guidance Document 2023/24\".\n\nSpecific guidance on how to complete these tender sheets is provided in Sections 7 & 8 of the Operating Margins Tender Guidance Document with specific cross-references to these tender sheets via superscript numbers adjacent to the relevant fields of information. Please also refer to Section 6 \"Requirements of the Tender Process\" in order to understand what must accompany the tender sheets as part of submission in order that assessment can proceed on any tenders received.\n\nTerms and phrases used in this document have the meanings set out or referred to in the template Operating Margins agreements and/or the Operating Margins Tender Guidance Document."]
[]
[]
[]
[]
[]
[]
[]
[]
[]
[]
[]
[]
[null,null,null,null,null,null,null,null,null,null,null,null,null,null,null,null,"Page 1"]
[]
[]
[null,null,null,"IMPORTANT INFORMATION - PLEASE READ:"]
[null,null,null,"• All parts of 'Sheet A' must be completed by all Storage tenderers and submitted to be eligible for assessment.\n• A Storage tenderer may submit a an additional proposal for a 12 month OM service in the form of 'Sheet B', whereby tranches are split differently. This is optional.\n\n\n**Volumes in Sheets A and B will be treated as mutually exclusive - i.e. National Grid will only consider accepting tranche(s) from ONE of Sheet A or Sheet B.**"]
[]
[]
[]
[]
[]
[null,null,null,"Completed Tenders should be submitted by 13:00 hours (GMT) on Monday 23rd January 2023 via Ariba.\n\nThe completed Tender Pack should be uploaded with a filename which includes the company name and site.\nAfter uploading the Tender Pack document, terms and conditions must be accepted before submitting.\nSubmissions can be revised until the deadline."]
[]
[]
[]
[]
[]
[]
[]
[]
[]
[]
[]
[]
[]
[]
[]
[]
[]
[]
[]
[]
[]
[]
[]
[]
[]
[]
[]
[]
[]
[null,null,null,null,null,null,null,null,null,null,null,null,null,null,null,null,"Page 2"]
[]
[]
[null,null,null,"2023/24 OM CAPACITY TENDER"]
[]
[]
[null,null,null,"Part 1: Tenderer Details"]
[]
[null,null,1,"Tenderer's Company Name\n(including company number)"]
[]
[null,null,2,"Company Representative, Job Title"]
[null,null,3,"Company Representative Address\n(full address including postcode)"]
[]
[]
[null,null,4,"Telephone Number"]
[null,null,5,"Facsimile Number"]
[null,null,6,"Email Address"]
[null,null,7,"Legal Agent Name"]
[null,null,8,"Legal Agent Address"]
[]
[null,null,9,"Shipper Short Code"]
[null,null,10,"Achilles Registration Number"]
[null,null,11,"Type of Credit Security Provided",null,null,null,null,null,null,null,null,null,null,null,null,1]
[]
[]
[null,null,null,"Part 2"]
[]
[null,null,null,"[See OM Tenderers Contract Response Form if such amendments are proposed]\nIf no amendments are proposed please go to Part 3"]
[]
[]
[null,null,null,"Part 3: Facility Details"]
[]
[null,null,12,"Facility Name\n(including company number if different)"]
[]
[null,null,13,"Facility Location\n(full address including postcode)"]
[]
[]
[null,null,14,"Service Provision Category",null,null,null,null,null,null,null,null,null,null,null,null,2]
[]
[]
[null,null,15,"Execution Date For Tenderer’s Agreement With Facility Operator"]
[]
[null,null,16,"Duration of Service",null,null,null,"12 Months (01/05/2023 - 30/04/2024)"]
[]
[]
[null,null,null,null,null,null,null,null,null,null,null,null,null,null,null,null,"Page 3"]
[]
[]
[null,null,null,"2023/24 OM CAPACITY TENDER"]
[]
[]
[null,null,null,"Part 4: Deliverability & Availability"]
[]
[null,null,17,"Storage Withdrawal Capacity (Tendered) \n(minimum requirement is 500,000 kWh/hour)",null,null,null,null,null,null,null,null,null,"kWh/Day"]
[]
[]
[null,null,18,"Withdrawal Response Time",null,null,null,null,null,null,null,null,null,"Minutes"]
[]
[null,null,19,"Injection Response Time",null,null,null,null,null,null,null,null,null,"As defined by tenderer"]
[]
[null,null,20,"Planned Maintenance Periods",null,null,null,null,null,null,null,null,null,"Dates"]
[]
[]
[]
[null,null,21,"Website for Service Availability / Unavailability"]
[]
[null,null,22,"Allocation Agent                                                                  (Name, Address, Tel No)"]
[]
[]
[null,null,null,"Part 5: Charges & Capacity"]
[]
[null,null,null,"Where charges are to be levied for the provision / use of this service, these must be quantified below"]
[]
[null,null,23,"Injection Amount\n(optional)",null,null,null,null,null,null,null,null,null,"p/kWh"]
[]
[null,null,24,"Withdrawal Amount\n(optional)",null,null,null,null,null,null,null,null,null,"p/kWh"]
[]
[null,null,25,"Injection Overrun Amount \n(optional)",null,null,null,null,null,null,null,null,null,"p/kWh"]
[]
[null,null,26,"Withdrawal Overrun Amount\n(optional)",null,null,null,null,null,null,null,null,null,"p/kWh"]
[]
[]
[null,null,"26A","Additional SP Withdrawal Capacity Charge\n(only applicable where Service Provider is not the Facility Operator)",null,null,null,null,null,null,null,null,null,"p/kWh"]
[]
[]
[null,null,null,null,null,null,null,null,null,null,null,null,null,null,null,null,"Page 4"]
[]
[]
[null,null,null,"2023/24 OM CAPACITY TENDER"]
[]
[]
[null,null,null,"Part 5: Charges & Capacity (Continued)"]
[null,null,null,27,null,28,null,29,null,30,null,31,null,32]
[null,null,null,"Capacity Procurement Tranche Number",null,"Storage Space (in kWh)",null,"Storage Injection Capacity (in kWh per day)",null,"Annual Service Fee (in pence per kWh per annum)",null,"Annual Service Fee (£)",null,"Tranche may only be accepted in full (YES / NO)"]
[]
[]
[]
[]
[null,null,null,1,null,null,null,null,null,null,null,{"$f":"(J178*F178)/100","v":0},null,null,null,null,false]
[]
[null,null,null,2,null,null,null,null,null,null,null,{"$f":"(J180*F180)/100","v":0},null,null,null,null,false]
[]
[null,null,null,3,null,null,null,null,null,null,null,{"$f":"(J182*F182)/100","v":0},null,null,null,null,false]
[]
[null,null,null,4,null,null,null,null,null,null,null,{"$f":"(J184*F184)/100","v":0},null,null,null,null,false]
[]
[null,null,null,5,null,null,null,null,null,null,null,{"$f":"(J186*F186)/100","v":0},null,null,null,null,false]
[]
[null,null,null,6,null,null,null,null,null,null,null,{"$f":"(J188*F188)/100","v":0},null,null,null,null,false]
[]
[null,null,null,7,null,null,null,null,null,null,null,{"$f":"(J190*F190)/100","v":0},null,null,null,null,false]
[]
[null,null,null,8,null,null,null,null,null,null,null,{"$f":"(J192*F192)/100","v":0},null,null,null,null,false]
[]
[null,null,null,9,null,null,null,null,null,null,null,{"$f":"(J194*F194)/100","v":0},null,null,null,null,false]
[]
[null,null,null,10,null,null,null,null,null,null,null,{"$f":"(J196*F196)/100","v":0},null,null,null,null,false]
[]
[null,null,null,"Total",null,{"$f":"SUM(F178:G197)","v":0},null,{"$f":"SUM(H178:I197)","v":0},null,null,null,{"$f":"SUM(L178:M197)","v":0}]
[]
[]
[]
[]
[]
[]
[null,null,null,null,null,null,null,null,null,null,null,null,null,null,null,null,"Page 5"]
[]
[]
[null,null,null,"2023/24 OM CAPACITY TENDER\n"]
[]
[]
[null,null,null,"Part 6: Facility Withdrawal Capacity (Nominal) (Tender Pack 1)"]
[]
[null,null,33,"Facility Withdrawal Capacity (Nominal)"]
[null,null,null,"Please use the below space to describe the deliverability at different stock levels"]
[null,null,null,"Stock Level (kWh)",null,null,null,null,null,"Total Physical Site deliverability kWh/d"]
[]
[]
[]
[]
[]
[]
[]
[]
[]
[]
[]
[]
[]
[]
[]
[]
[]
[]
[]
[]
[]
[]
[]
[]
[]
[]
[]
[]
[]
[null,null,null,null,null,null,null,null,null,null,null,null,null,null,null,null,"Page 6"]

{"sheet":"DC1B","index":3,"n_rows":13,"n_cols":36,"rows_kept":13,"cut":false,"hidden":true,"merged":[[0,2,1,9]]}
[null,null,"Data Collection Tab for Contracts Team"]
[]
["Tender Pack","Tender Ref","Tranche Ref","Main Ref","Tenderer's Company Name","Company Representative","Company Representative Address","Telephone Number","Facsimile Number","E-Mail Address","Legal Agent Name","Legal Agent Address","Shipper Short Code","Achilles Registration Number","Type of credit security provided","Winter only?","Facility Name","Facility Location","Service Provision Category","Execution Date for Tenderer's Agreement With Facility Operator","Storage Withdrawal Capacity, kWh/Day","Withdrawal Response Time, Minutes","Injection Response Time, Minutes","Planned Maintenenace Periods, Dates","Website for Clauses","Allocation Agent","Injection Charge (Optional), p/kWh","Withdrawal Charge (Optional), p/kWh","Injection Overrun Charge (Optional), p/kWh","Withdrawal Overrun Charge (Optional), p/kWh","Capacity Procurement Tranche Number","Storage Space, kWh","Storage Injection Capacity, kWh / day","Annual Service Fee, p/kWh pa","Please tick if the tranche may only be accepted in full","Has Facility Withdrawal Capacity been entered?"]
[null,null,null,{"$f":"A4&\".\"&B4&\".\"&C4","v":".."},{"$f":"'TENDER PACK 1 STORAGE (Sheet B)'!$H$88","v":0},{"$f":"'TENDER PACK 1 STORAGE (Sheet B)'!$H$90","v":0},{"$f":"'TENDER PACK 1 STORAGE (Sheet B)'!$H$91","v":0},{"$f":"'TENDER PACK 1 STORAGE (Sheet B)'!$H$94","v":0},{"$f":"'TENDER PACK 1 STORAGE (Sheet B)'!$H$95","v":0},{"$f":"'TENDER PACK 1 STORAGE (Sheet B)'!$H$96","v":0},{"$f":"'TENDER PACK 1 STORAGE (Sheet B)'!$H$97","v":0},{"$f":"'TENDER PACK 1 STORAGE (Sheet B)'!$H$98","v":0},{"$f":"'TENDER PACK 1 STORAGE (Sheet B)'!$H$100","v":0},{"$f":"'TENDER PACK 1 STORAGE (Sheet B)'!$H$101","v":0},{"$f":"IF('TENDER PACK 1 STORAGE (Sheet B)'!$Q$102=2,\"Parent Company Guarantee\",IF('TENDER PACK 1 STORAGE (Sheet B)'!$Q$102=3,\"Letter of Credit\",IF('TENDER PACK 1 STORAGE (Sheet B)'!$Q$102=1,\"Meets Requirements\",\"UNCHECKED\")))","v":"Meets Requirements"},"No",{"$f":"'TENDER PACK 1 STORAGE (Sheet B)'!$H$112","v":0},{"$f":"'TENDER PACK 1 STORAGE (Sheet B)'!$H$114","v":0},{"$f":"IF('TENDER PACK 1 STORAGE (Sheet B)'!$Q$117=1,\"STORAGE OPERATOR\",IF('TENDER PACK 1 STORAGE (Sheet B)'!$Q$117=2,\"Primary Capacity Holder of Storage\",\"UNCHECKED\"))","v":"Primary Capacity Holder of Storage"},{"$f":"'TENDER PACK 1 STORAGE (Sheet B)'!$H$120","v":"00:00:00"},{"$f":"'TENDER PACK 1 STORAGE (Sheet B)'!$H$133","v":0},{"$f":"'TENDER PACK 1 STORAGE (Sheet B)'!$H$136","v":0},{"$f":"'TENDER PACK 1 STORAGE (Sheet B)'!$H$138","v":0},{"$f":"'TENDER PACK 1 STORAGE (Sheet B)'!$H$140","v":"00:00:00"},{"$f":"'TENDER PACK 1 STORAGE (Sheet B)'!$H$144","v":0},{"$f":"'TENDER PACK 1 STORAGE (Sheet B)'!$H$146","v":0},{"$f":"'TENDER PACK 1 STORAGE (Sheet B)'!$H$153","v":0},{"$f":"'TENDER PACK 1 STORAGE (Sheet B)'!$H$155","v":0},{"$f":"'TENDER PACK 1 STORAGE (Sheet B)'!$H$157","v":0},{"$f":"'TENDER PACK 1 STORAGE (Sheet B)'!$H$159","v":0},{"$f":"'TENDER PACK 1 STORAGE (Sheet B)'!$D$178","v":1},{"$f":"'TENDER PACK 1 STORAGE (Sheet B)'!$F$178","v":0},{"$f":"'TENDER PACK 1 STORAGE (Sheet B)'!$H$178","v":0},{"$f":"'TENDER PACK 1 STORAGE (Sheet B)'!$J$178","v":0},{"$f":"'TENDER PACK 1 STORAGE (Sheet B)'!$N$178","v":0}]
[null,null,null,"..",{"$f":"'TENDER PACK 1 STORAGE (Sheet B)'!$H$88","v":0},{"$f":"'TENDER PACK 1 STORAGE (Sheet B)'!$H$90","v":0},{"$f":"'TENDER PACK 1 STORAGE (Sheet B)'!$H$91","v":0},{"$f":"'TENDER PACK 1 STORAGE (Sheet B)'!$H$94","v":0},{"$f":"'TENDER PACK 1 STORAGE (Sheet B)'!$H$95","v":0},{"$f":"'TENDER PACK 1 STORAGE (Sheet B)'!$H$96","v":0},{"$f":"'TENDER PACK 1 STORAGE (Sheet B)'!$H$97","v":0},{"$f":"'TENDER PACK 1 STORAGE (Sheet B)'!$H$98","v":0},{"$f":"'TENDER PACK 1 STORAGE (Sheet B)'!$H$100","v":0},{"$f":"'TENDER PACK 1 STORAGE (Sheet B)'!$H$101","v":0},{"$f":"IF('TENDER PACK 1 STORAGE (Sheet B)'!$Q$102=2,\"Parent Company Guarantee\",IF('TENDER PACK 1 STORAGE (Sheet B)'!$Q$102=3,\"Letter of Credit\",IF('TENDER PACK 1 STORAGE (Sheet B)'!$Q$102=1,\"Meets Requirements\",\"UNCHECKED\")))","v":"Meets Requirements"},"No",{"$f":"'TENDER PACK 1 STORAGE (Sheet B)'!$H$112","v":0},{"$f":"'TENDER PACK 1 STORAGE (Sheet B)'!$H$114","v":0},{"$f":"IF('TENDER PACK 1 STORAGE (Sheet B)'!$Q$117=1,\"STORAGE OPERATOR\",IF('TENDER PACK 1 STORAGE (Sheet B)'!$Q$117=2,\"Primary Capacity Holder of Storage\",\"UNCHECKED\"))","v":"Primary Capacity Holder of Storage"},{"$f":"'TENDER PACK 1 STORAGE (Sheet B)'!$H$120","v":"00:00:00"},{"$f":"'TENDER PACK 1 STORAGE (Sheet B)'!$H$133","v":0},{"$f":"'TENDER PACK 1 STORAGE (Sheet B)'!$H$136","v":0},{"$f":"'TENDER PACK 1 STORAGE (Sheet B)'!$H$138","v":0},{"$f":"'TENDER PACK 1 STORAGE (Sheet B)'!$H$140","v":"00:00:00"},{"$f":"'TENDER PACK 1 STORAGE (Sheet B)'!$H$144","v":0},{"$f":"'TENDER PACK 1 STORAGE (Sheet B)'!$H$146","v":0},{"$f":"'TENDER PACK 1 STORAGE (Sheet B)'!$H$153","v":0},{"$f":"'TENDER PACK 1 STORAGE (Sheet B)'!$H$155","v":0},{"$f":"'TENDER PACK 1 STORAGE (Sheet B)'!$H$157","v":0},{"$f":"'TENDER PACK 1 STORAGE (Sheet B)'!$H$159","v":0},{"$f":"'TENDER PACK 1 STORAGE (Sheet B)'!$D$180","v":2},{"$f":"'TENDER PACK 1 STORAGE (Sheet B)'!$F$180","v":0},{"$f":"'TENDER PACK 1 STORAGE (Sheet B)'!$H$180","v":0},{"$f":"'TENDER PACK 1 STORAGE (Sheet B)'!$J$180","v":0},{"$f":"'TENDER PACK 1 STORAGE (Sheet B)'!$N$180","v":0}]
[null,null,null,"..",{"$f":"'TENDER PACK 1 STORAGE (Sheet B)'!$H$88","v":0},{"$f":"'TENDER PACK 1 STORAGE (Sheet B)'!$H$90","v":0},{"$f":"'TENDER PACK 1 STORAGE (Sheet B)'!$H$91","v":0},{"$f":"'TENDER PACK 1 STORAGE (Sheet B)'!$H$94","v":0},{"$f":"'TENDER PACK 1 STORAGE (Sheet B)'!$H$95","v":0},{"$f":"'TENDER PACK 1 STORAGE (Sheet B)'!$H$96","v":0},{"$f":"'TENDER PACK 1 STORAGE (Sheet B)'!$H$97","v":0},{"$f":"'TENDER PACK 1 STORAGE (Sheet B)'!$H$98","v":0},{"$f":"'TENDER PACK 1 STORAGE (Sheet B)'!$H$100","v":0},{"$f":"'TENDER PACK 1 STORAGE (Sheet B)'!$H$101","v":0},{"$f":"IF('TENDER PACK 1 STORAGE (Sheet B)'!$Q$102=2,\"Parent Company Guarantee\",IF('TENDER PACK 1 STORAGE (Sheet B)'!$Q$102=3,\"Letter of Credit\",IF('TENDER PACK 1 STORAGE (Sheet B)'!$Q$102=1,\"Meets Requirements\",\"UNCHECKED\")))","v":"Meets Requirements"},"No",{"$f":"'TENDER PACK 1 STORAGE (Sheet B)'!$H$112","v":0},{"$f":"'TENDER PACK 1 STORAGE (Sheet B)'!$H$114","v":0},{"$f":"IF('TENDER PACK 1 STORAGE (Sheet B)'!$Q$117=1,\"STORAGE OPERATOR\",IF('TENDER PACK 1 STORAGE (Sheet B)'!$Q$117=2,\"Primary Capacity Holder of Storage\",\"UNCHECKED\"))","v":"Primary Capacity Holder of Storage"},{"$f":"'TENDER PACK 1 STORAGE (Sheet B)'!$H$120","v":"00:00:00"},{"$f":"'TENDER PACK 1 STORAGE (Sheet B)'!$H$133","v":0},{"$f":"'TENDER PACK 1 STORAGE (Sheet B)'!$H$136","v":0},{"$f":"'TENDER PACK 1 STORAGE (Sheet B)'!$H$138","v":0},{"$f":"'TENDER PACK 1 STORAGE (Sheet B)'!$H$140","v":"00:00:00"},{"$f":"'TENDER PACK 1 STORAGE (Sheet B)'!$H$144","v":0},{"$f":"'TENDER PACK 1 STORAGE (Sheet B)'!$H$146","v":0},{"$f":"'TENDER PACK 1 STORAGE (Sheet B)'!$H$153","v":0},{"$f":"'TENDER PACK 1 STORAGE (Sheet B)'!$H$155","v":0},{"$f":"'TENDER PACK 1 STORAGE (Sheet B)'!$H$157","v":0},{"$f":"'TENDER PACK 1 STORAGE (Sheet B)'!$H$159","v":0},{"$f":"'TENDER PACK 1 STORAGE (Sheet B)'!$D$182","v":3},{"$f":"'TENDER PACK 1 STORAGE (Sheet B)'!$F$182","v":0},{"$f":"'TENDER PACK 1 STORAGE (Sheet B)'!$H$182","v":0},{"$f":"'TENDER PACK 1 STORAGE (Sheet B)'!$J$182","v":0},{"$f":"'TENDER PACK 1 STORAGE (Sheet B)'!$N$182","v":0}]
[null,null,null,"..",{"$f":"'TENDER PACK 1 STORAGE (Sheet B)'!$H$88","v":0},{"$f":"'TENDER PACK 1 STORAGE (Sheet B)'!$H$90","v":0},{"$f":"'TENDER PACK 1 STORAGE (Sheet B)'!$H$91","v":0},{"$f":"'TENDER PACK 1 STORAGE (Sheet B)'!$H$94","v":0},{"$f":"'TENDER PACK 1 STORAGE (Sheet B)'!$H$95","v":0},{"$f":"'TENDER PACK 1 STORAGE (Sheet B)'!$H$96","v":0},{"$f":"'TENDER PACK 1 STORAGE (Sheet B)'!$H$97","v":0},{"$f":"'TENDER PACK 1 STORAGE (Sheet B)'!$H$98","v":0},{"$f":"'TENDER PACK 1 STORAGE (Sheet B)'!$H$100","v":0},{"$f":"'TENDER PACK 1 STORAGE (Sheet B)'!$H$101","v":0},{"$f":"IF('TENDER PACK 1 STORAGE (Sheet B)'!$Q$102=2,\"Parent Company Guarantee\",IF('TENDER PACK 1 STORAGE (Sheet B)'!$Q$102=3,\"Letter of Credit\",IF('TENDER PACK 1 STORAGE (Sheet B)'!$Q$102=1,\"Meets Requirements\",\"UNCHECKED\")))","v":"Meets Requirements"},"No",{"$f":"'TENDER PACK 1 STORAGE (Sheet B)'!$H$112","v":0},{"$f":"'TENDER PACK 1 STORAGE (Sheet B)'!$H$114","v":0},{"$f":"IF('TENDER PACK 1 STORAGE (Sheet B)'!$Q$117=1,\"STORAGE OPERATOR\",IF('TENDER PACK 1 STORAGE (Sheet B)'!$Q$117=2,\"Primary Capacity Holder of Storage\",\"UNCHECKED\"))","v":"Primary Capacity Holder of Storage"},{"$f":"'TENDER PACK 1 STORAGE (Sheet B)'!$H$120","v":"00:00:00"},{"$f":"'TENDER PACK 1 STORAGE (Sheet B)'!$H$133","v":0},{"$f":"'TENDER PACK 1 STORAGE (Sheet B)'!$H$136","v":0},{"$f":"'TENDER PACK 1 STORAGE (Sheet B)'!$H$138","v":0},{"$f":"'TENDER PACK 1 STORAGE (Sheet B)'!$H$140","v":"00:00:00"},{"$f":"'TENDER PACK 1 STORAGE (Sheet B)'!$H$144","v":0},{"$f":"'TENDER PACK 1 STORAGE (Sheet B)'!$H$146","v":0},{"$f":"'TENDER PACK 1 STORAGE (Sheet B)'!$H$153","v":0},{"$f":"'TENDER PACK 1 STORAGE (Sheet B)'!$H$155","v":0},{"$f":"'TENDER PACK 1 STORAGE (Sheet B)'!$H$157","v":0},{"$f":"'TENDER PACK 1 STORAGE (Sheet B)'!$H$159","v":0},{"$f":"'TENDER PACK 1 STORAGE (Sheet B)'!$D$184","v":4},{"$f":"'TENDER PACK 1 STORAGE (Sheet B)'!$F$184","v":0},{"$f":"'TENDER PACK 1 STORAGE (Sheet B)'!$H$184","v":0},{"$f":"'TENDER PACK 1 STORAGE (Sheet B)'!$J$184","v":0},{"$f":"'TENDER PACK 1 STORAGE (Sheet B)'!$N$184","v":0}]
[null,null,null,"..",{"$f":"'TENDER PACK 1 STORAGE (Sheet B)'!$H$88","v":0},{"$f":"'TENDER PACK 1 STORAGE (Sheet B)'!$H$90","v":0},{"$f":"'TENDER PACK 1 STORAGE (Sheet B)'!$H$91","v":0},{"$f":"'TENDER PACK 1 STORAGE (Sheet B)'!$H$94","v":0},{"$f":"'TENDER PACK 1 STORAGE (Sheet B)'!$H$95","v":0},{"$f":"'TENDER PACK 1 STORAGE (Sheet B)'!$H$96","v":0},{"$f":"'TENDER PACK 1 STORAGE (Sheet B)'!$H$97","v":0},{"$f":"'TENDER PACK 1 STORAGE (Sheet B)'!$H$98","v":0},{"$f":"'TENDER PACK 1 STORAGE (Sheet B)'!$H$100","v":0},{"$f":"'TENDER PACK 1 STORAGE (Sheet B)'!$H$101","v":0},{"$f":"IF('TENDER PACK 1 STORAGE (Sheet B)'!$Q$102=2,\"Parent Company Guarantee\",IF('TENDER PACK 1 STORAGE (Sheet B)'!$Q$102=3,\"Letter of Credit\",IF('TENDER PACK 1 STORAGE (Sheet B)'!$Q$102=1,\"Meets Requirements\",\"UNCHECKED\")))","v":"Meets Requirements"},"No",{"$f":"'TENDER PACK 1 STORAGE (Sheet B)'!$H$112","v":0},{"$f":"'TENDER PACK 1 STORAGE (Sheet B)'!$H$114","v":0},{"$f":"IF('TENDER PACK 1 STORAGE (Sheet B)'!$Q$117=1,\"STORAGE OPERATOR\",IF('TENDER PACK 1 STORAGE (Sheet B)'!$Q$117=2,\"Primary Capacity Holder of Storage\",\"UNCHECKED\"))","v":"Primary Capacity Holder of Storage"},{"$f":"'TENDER PACK 1 STORAGE (Sheet B)'!$H$120","v":"00:00:00"},{"$f":"'TENDER PACK 1 STORAGE (Sheet B)'!$H$133","v":0},{"$f":"'TENDER PACK 1 STORAGE (Sheet B)'!$H$136","v":0},{"$f":"'TENDER PACK 1 STORAGE (Sheet B)'!$H$138","v":0},{"$f":"'TENDER PACK 1 STORAGE (Sheet B)'!$H$140","v":"00:00:00"},{"$f":"'TENDER PACK 1 STORAGE (Sheet B)'!$H$144","v":0},{"$f":"'TENDER PACK 1 STORAGE (Sheet B)'!$H$146","v":0},{"$f":"'TENDER PACK 1 STORAGE (Sheet B)'!$H$153","v":0},{"$f":"'TENDER PACK 1 STORAGE (Sheet B)'!$H$155","v":0},{"$f":"'TENDER PACK 1 STORAGE (Sheet B)'!$H$157","v":0},{"$f":"'TENDER PACK 1 STORAGE (Sheet B)'!$H$159","v":0},{"$f":"'TENDER PACK 1 STORAGE (Sheet B)'!$D$186","v":5},{"$f":"'TENDER PACK 1 STORAGE (Sheet B)'!$F$186","v":0},{"$f":"'TENDER PACK 1 STORAGE (Sheet B)'!$H$186","v":0},{"$f":"'TENDER PACK 1 STORAGE (Sheet B)'!$J$186","v":0},{"$f":"'TENDER PACK 1 STORAGE (Sheet B)'!$N$186","v":0}]
[null,null,null,"..",{"$f":"'TENDER PACK 1 STORAGE (Sheet B)'!$H$88","v":0},{"$f":"'TENDER PACK 1 STORAGE (Sheet B)'!$H$90","v":0},{"$f":"'TENDER PACK 1 STORAGE (Sheet B)'!$H$91","v":0},{"$f":"'TENDER PACK 1 STORAGE (Sheet B)'!$H$94","v":0},{"$f":"'TENDER PACK 1 STORAGE (Sheet B)'!$H$95","v":0},{"$f":"'TENDER PACK 1 STORAGE (Sheet B)'!$H$96","v":0},{"$f":"'TENDER PACK 1 STORAGE (Sheet B)'!$H$97","v":0},{"$f":"'TENDER PACK 1 STORAGE (Sheet B)'!$H$98","v":0},{"$f":"'TENDER PACK 1 STORAGE (Sheet B)'!$H$100","v":0},{"$f":"'TENDER PACK 1 STORAGE (Sheet B)'!$H$101","v":0},{"$f":"IF('TENDER PACK 1 STORAGE (Sheet B)'!$Q$102=2,\"Parent Company Guarantee\",IF('TENDER PACK 1 STORAGE (Sheet B)'!$Q$102=3,\"Letter of Credit\",IF('TENDER PACK 1 STORAGE (Sheet B)'!$Q$102=1,\"Meets Requirements\",\"UNCHECKED\")))","v":"Meets Requirements"},"No",{"$f":"'TENDER PACK 1 STORAGE (Sheet B)'!$H$112","v":0},{"$f":"'TENDER PACK 1 STORAGE (Sheet B)'!$H$114","v":0},{"$f":"IF('TENDER PACK 1 STORAGE (Sheet B)'!$Q$117=1,\"STORAGE OPERATOR\",IF('TENDER PACK 1 STORAGE (Sheet B)'!$Q$117=2,\"Primary Capacity Holder of Storage\",\"UNCHECKED\"))","v":"Primary Capacity Holder of Storage"},{"$f":"'TENDER PACK 1 STORAGE (Sheet B)'!$H$120","v":"00:00:00"},{"$f":"'TENDER PACK 1 STORAGE (Sheet B)'!$H$133","v":0},{"$f":"'TENDER PACK 1 STORAGE (Sheet B)'!$H$136","v":0},{"$f":"'TENDER PACK 1 STORAGE (Sheet B)'!$H$138","v":0},{"$f":"'TENDER PACK 1 STORAGE (Sheet B)'!$H$140","v":"00:00:00"},{"$f":"'TENDER PACK 1 STORAGE (Sheet B)'!$H$144","v":0},{"$f":"'TENDER PACK 1 STORAGE (Sheet B)'!$H$146","v":0},{"$f":"'TENDER PACK 1 STORAGE (Sheet B)'!$H$153","v":0},{"$f":"'TENDER PACK 1 STORAGE (Sheet B)'!$H$155","v":0},{"$f":"'TENDER PACK 1 STORAGE (Sheet B)'!$H$157","v":0},{"$f":"'TENDER PACK 1 STORAGE (Sheet B)'!$H$159","v":0},{"$f":"'TENDER PACK 1 STORAGE (Sheet B)'!$D$188","v":6},{"$f":"'TENDER PACK 1 STORAGE (Sheet B)'!$F$188","v":0},{"$f":"'TENDER PACK 1 STORAGE (Sheet B)'!$H$188","v":0},{"$f":"'TENDER PACK 1 STORAGE (Sheet B)'!$J$188","v":0},{"$f":"'TENDER PACK 1 STORAGE (Sheet B)'!$N$188","v":0}]
[null,null,null,"..",{"$f":"'TENDER PACK 1 STORAGE (Sheet B)'!$H$88","v":0},{"$f":"'TENDER PACK 1 STORAGE (Sheet B)'!$H$90","v":0},{"$f":"'TENDER PACK 1 STORAGE (Sheet B)'!$H$91","v":0},{"$f":"'TENDER PACK 1 STORAGE (Sheet B)'!$H$94","v":0},{"$f":"'TENDER PACK 1 STORAGE (Sheet B)'!$H$95","v":0},{"$f":"'TENDER PACK 1 STORAGE (Sheet B)'!$H$96","v":0},{"$f":"'TENDER PACK 1 STORAGE (Sheet B)'!$H$97","v":0},{"$f":"'TENDER PACK 1 STORAGE (Sheet B)'!$H$98","v":0},{"$f":"'TENDER PACK 1 STORAGE (Sheet B)'!$H$100","v":0},{"$f":"'TENDER PACK 1 STORAGE (Sheet B)'!$H$101","v":0},{"$f":"IF('TENDER PACK 1 STORAGE (Sheet B)'!$Q$102=2,\"Parent Company Guarantee\",IF('TENDER PACK 1 STORAGE (Sheet B)'!$Q$102=3,\"Letter of Credit\",IF('TENDER PACK 1 STORAGE (Sheet B)'!$Q$102=1,\"Meets Requirements\",\"UNCHECKED\")))","v":"Meets Requirements"},"No",{"$f":"'TENDER PACK 1 STORAGE (Sheet B)'!$H$112","v":0},{"$f":"'TENDER PACK 1 STORAGE (Sheet B)'!$H$114","v":0},{"$f":"IF('TENDER PACK 1 STORAGE (Sheet B)'!$Q$117=1,\"STORAGE OPERATOR\",IF('TENDER PACK 1 STORAGE (Sheet B)'!$Q$117=2,\"Primary Capacity Holder of Storage\",\"UNCHECKED\"))","v":"Primary Capacity Holder of Storage"},{"$f":"'TENDER PACK 1 STORAGE (Sheet B)'!$H$120","v":"00:00:00"},{"$f":"'TENDER PACK 1 STORAGE (Sheet B)'!$H$133","v":0},{"$f":"'TENDER PACK 1 STORAGE (Sheet B)'!$H$136","v":0},{"$f":"'TENDER PACK 1 STORAGE (Sheet B)'!$H$138","v":0},{"$f":"'TENDER PACK 1 STORAGE (Sheet B)'!$H$140","v":"00:00:00"},{"$f":"'TENDER PACK 1 STORAGE (Sheet B)'!$H$144","v":0},{"$f":"'TENDER PACK 1 STORAGE (Sheet B)'!$H$146","v":0},{"$f":"'TENDER PACK 1 STORAGE (Sheet B)'!$H$153","v":0},{"$f":"'TENDER PACK 1 STORAGE (Sheet B)'!$H$155","v":0},{"$f":"'TENDER PACK 1 STORAGE (Sheet B)'!$H$157","v":0},{"$f":"'TENDER PACK 1 STORAGE (Sheet B)'!$H$159","v":0},{"$f":"'TENDER PACK 1 STORAGE (Sheet B)'!$D$190","v":7},{"$f":"'TENDER PACK 1 STORAGE (Sheet B)'!$F$190","v":0},{"$f":"'TENDER PACK 1 STORAGE (Sheet B)'!$H$190","v":0},{"$f":"'TENDER PACK 1 STORAGE (Sheet B)'!$J$190","v":0},{"$f":"'TENDER PACK 1 STORAGE (Sheet B)'!$N$190","v":0}]
[null,null,null,"..",{"$f":"'TENDER PACK 1 STORAGE (Sheet B)'!$H$88","v":0},{"$f":"'TENDER PACK 1 STORAGE (Sheet B)'!$H$90","v":0},{"$f":"'TENDER PACK 1 STORAGE (Sheet B)'!$H$91","v":0},{"$f":"'TENDER PACK 1 STORAGE (Sheet B)'!$H$94","v":0},{"$f":"'TENDER PACK 1 STORAGE (Sheet B)'!$H$95","v":0},{"$f":"'TENDER PACK 1 STORAGE (Sheet B)'!$H$96","v":0},{"$f":"'TENDER PACK 1 STORAGE (Sheet B)'!$H$97","v":0},{"$f":"'TENDER PACK 1 STORAGE (Sheet B)'!$H$98","v":0},{"$f":"'TENDER PACK 1 STORAGE (Sheet B)'!$H$100","v":0},{"$f":"'TENDER PACK 1 STORAGE (Sheet B)'!$H$101","v":0},{"$f":"IF('TENDER PACK 1 STORAGE (Sheet B)'!$Q$102=2,\"Parent Company Guarantee\",IF('TENDER PACK 1 STORAGE (Sheet B)'!$Q$102=3,\"Letter of Credit\",IF('TENDER PACK 1 STORAGE (Sheet B)'!$Q$102=1,\"Meets Requirements\",\"UNCHECKED\")))","v":"Meets Requirements"},"No",{"$f":"'TENDER PACK 1 STORAGE (Sheet B)'!$H$112","v":0},{"$f":"'TENDER PACK 1 STORAGE (Sheet B)'!$H$114","v":0},{"$f":"IF('TENDER PACK 1 STORAGE (Sheet B)'!$Q$117=1,\"STORAGE OPERATOR\",IF('TENDER PACK 1 STORAGE (Sheet B)'!$Q$117=2,\"Primary Capacity Holder of Storage\",\"UNCHECKED\"))","v":"Primary Capacity Holder of Storage"},{"$f":"'TENDER PACK 1 STORAGE (Sheet B)'!$H$120","v":"00:00:00"},{"$f":"'TENDER PACK 1 STORAGE (Sheet B)'!$H$133","v":0},{"$f":"'TENDER PACK 1 STORAGE (Sheet B)'!$H$136","v":0},{"$f":"'TENDER PACK 1 STORAGE (Sheet B)'!$H$138","v":0},{"$f":"'TENDER PACK 1 STORAGE (Sheet B)'!$H$140","v":"00:00:00"},{"$f":"'TENDER PACK 1 STORAGE (Sheet B)'!$H$144","v":0},{"$f":"'TENDER PACK 1 STORAGE (Sheet B)'!$H$146","v":0},{"$f":"'TENDER PACK 1 STORAGE (Sheet B)'!$H$153","v":0},{"$f":"'TENDER PACK 1 STORAGE (Sheet B)'!$H$155","v":0},{"$f":"'TENDER PACK 1 STORAGE (Sheet B)'!$H$157","v":0},{"$f":"'TENDER PACK 1 STORAGE (Sheet B)'!$H$159","v":0},{"$f":"'TENDER PACK 1 STORAGE (Sheet B)'!$D$192","v":8},{"$f":"'TENDER PACK 1 STORAGE (Sheet B)'!$F$192","v":0},{"$f":"'TENDER PACK 1 STORAGE (Sheet B)'!$H$192","v":0},{"$f":"'TENDER PACK 1 STORAGE (Sheet B)'!$J$192","v":0},{"$f":"'TENDER PACK 1 STORAGE (Sheet B)'!$N$192","v":0}]
[null,null,null,"..",{"$f":"'TENDER PACK 1 STORAGE (Sheet B)'!$H$88","v":0},{"$f":"'TENDER PACK 1 STORAGE (Sheet B)'!$H$90","v":0},{"$f":"'TENDER PACK 1 STORAGE (Sheet B)'!$H$91","v":0},{"$f":"'TENDER PACK 1 STORAGE (Sheet B)'!$H$94","v":0},{"$f":"'TENDER PACK 1 STORAGE (Sheet B)'!$H$95","v":0},{"$f":"'TENDER PACK 1 STORAGE (Sheet B)'!$H$96","v":0},{"$f":"'TENDER PACK 1 STORAGE (Sheet B)'!$H$97","v":0},{"$f":"'TENDER PACK 1 STORAGE (Sheet B)'!$H$98","v":0},{"$f":"'TENDER PACK 1 STORAGE (Sheet B)'!$H$100","v":0},{"$f":"'TENDER PACK 1 STORAGE (Sheet B)'!$H$101","v":0},{"$f":"IF('TENDER PACK 1 STORAGE (Sheet B)'!$Q$102=2,\"Parent Company Guarantee\",IF('TENDER PACK 1 STORAGE (Sheet B)'!$Q$102=3,\"Letter of Credit\",IF('TENDER PACK 1 STORAGE (Sheet B)'!$Q$102=1,\"Meets Requirements\",\"UNCHECKED\")))","v":"Meets Requirements"},"No",{"$f":"'TENDER PACK 1 STORAGE (Sheet B)'!$H$112","v":0},{"$f":"'TENDER PACK 1 STORAGE (Sheet B)'!$H$114","v":0},{"$f":"IF('TENDER PACK 1 STORAGE (Sheet B)'!$Q$117=1,\"STORAGE OPERATOR\",IF('TENDER PACK 1 STORAGE (Sheet B)'!$Q$117=2,\"Primary Capacity Holder of Storage\",\"UNCHECKED\"))","v":"Primary Capacity Holder of Storage"},{"$f":"'TENDER PACK 1 STORAGE (Sheet B)'!$H$120","v":"00:00:00"},{"$f":"'TENDER PACK 1 STORAGE (Sheet B)'!$H$133","v":0},{"$f":"'TENDER PACK 1 STORAGE (Sheet B)'!$H$136","v":0},{"$f":"'TENDER PACK 1 STORAGE (Sheet B)'!$H$138","v":0},{"$f":"'TENDER PACK 1 STORAGE (Sheet B)'!$H$140","v":"00:00:00"},{"$f":"'TENDER PACK 1 STORAGE (Sheet B)'!$H$144","v":0},{"$f":"'TENDER PACK 1 STORAGE (Sheet B)'!$H$146","v":0},{"$f":"'TENDER PACK 1 STORAGE (Sheet B)'!$H$153","v":0},{"$f":"'TENDER PACK 1 STORAGE (Sheet B)'!$H$155","v":0},{"$f":"'TENDER PACK 1 STORAGE (Sheet B)'!$H$157","v":0},{"$f":"'TENDER PACK 1 STORAGE (Sheet B)'!$H$159","v":0},{"$f":"'TENDER PACK 1 STORAGE (Sheet B)'!$D$194","v":9},{"$f":"'TENDER PACK 1 STORAGE (Sheet B)'!$F$194","v":0},{"$f":"'TENDER PACK 1 STORAGE (Sheet B)'!$H$194","v":0},{"$f":"'TENDER PACK 1 STORAGE (Sheet B)'!$J$194","v":0},{"$f":"'TENDER PACK 1 STORAGE (Sheet B)'!$N$194","v":0}]
[null,null,null,"..",{"$f":"'TENDER PACK 1 STORAGE (Sheet B)'!$H$88","v":0},{"$f":"'TENDER PACK 1 STORAGE (Sheet B)'!$H$90","v":0},{"$f":"'TENDER PACK 1 STORAGE (Sheet B)'!$H$91","v":0},{"$f":"'TENDER PACK 1 STORAGE (Sheet B)'!$H$94","v":0},{"$f":"'TENDER PACK 1 STORAGE (Sheet B)'!$H$95","v":0},{"$f":"'TENDER PACK 1 STORAGE (Sheet B)'!$H$96","v":0},{"$f":"'TENDER PACK 1 STORAGE (Sheet B)'!$H$97","v":0},{"$f":"'TENDER PACK 1 STORAGE (Sheet B)'!$H$98","v":0},{"$f":"'TENDER PACK 1 STORAGE (Sheet B)'!$H$100","v":0},{"$f":"'TENDER PACK 1 STORAGE (Sheet B)'!$H$101","v":0},{"$f":"IF('TENDER PACK 1 STORAGE (Sheet B)'!$Q$102=2,\"Parent Company Guarantee\",IF('TENDER PACK 1 STORAGE (Sheet B)'!$Q$102=3,\"Letter of Credit\",IF('TENDER PACK 1 STORAGE (Sheet B)'!$Q$102=1,\"Meets Requirements\",\"UNCHECKED\")))","v":"Meets Requirements"},"No",{"$f":"'TENDER PACK 1 STORAGE (Sheet B)'!$H$112","v":0},{"$f":"'TENDER PACK 1 STORAGE (Sheet B)'!$H$114","v":0},{"$f":"IF('TENDER PACK 1 STORAGE (Sheet B)'!$Q$117=1,\"STORAGE OPERATOR\",IF('TENDER PACK 1 STORAGE (Sheet B)'!$Q$117=2,\"Primary Capacity Holder of Storage\",\"UNCHECKED\"))","v":"Primary Capacity Holder of Storage"},{"$f":"'TENDER PACK 1 STORAGE (Sheet B)'!$H$120","v":"00:00:00"},{"$f":"'TENDER PACK 1 STORAGE (Sheet B)'!$H$133","v":0},{"$f":"'TENDER PACK 1 STORAGE (Sheet B)'!$H$136","v":0},{"$f":"'TENDER PACK 1 STORAGE (Sheet B)'!$H$138","v":0},{"$f":"'TENDER PACK 1 STORAGE (Sheet B)'!$H$140","v":"00:00:00"},{"$f":"'TENDER PACK 1 STORAGE (Sheet B)'!$H$144","v":0},{"$f":"'TENDER PACK 1 STORAGE (Sheet B)'!$H$146","v":0},{"$f":"'TENDER PACK 1 STORAGE (Sheet B)'!$H$153","v":0},{"$f":"'TENDER PACK 1 STORAGE (Sheet B)'!$H$155","v":0},{"$f":"'TENDER PACK 1 STORAGE (Sheet B)'!$H$157","v":0},{"$f":"'TENDER PACK 1 STORAGE (Sheet B)'!$H$159","v":0},{"$f":"'TENDER PACK 1 STORAGE (Sheet B)'!$D$196","v":10},{"$f":"'TENDER PACK 1 STORAGE (Sheet B)'!$F$196","v":0},{"$f":"'TENDER PACK 1 STORAGE (Sheet B)'!$H$196","v":0},{"$f":"'TENDER PACK 1 STORAGE (Sheet B)'!$J$196","v":0},{"$f":"'TENDER PACK 1 STORAGE (Sheet B)'!$N$196","v":0}]